Cogmind - Beta 15 @@@ ROGUE MODE // 2025.06.02 @ 11:33:45 Player: the cat! Result: Destroyed by YX-ZDS(R) with Subdweller Machine Gun Performance ------------- Evolutions (0) 0 Regions Visited (2) 400 Robots Destroyed (30) 150 Value Destroyed (891) 891 Prototype IDs (3) 60 Alien Tech Used (0) 0 Bonus (-109) -109 TOTAL SCORE: 1392 Bonus ------- Friendly Fire -109 Cogmind --------- Core Integrity 0/250 Matter 284/300 Energy 99/100 System Corruption 8% Temperature Cool (0) Movement Rolling (150) Ox4 Location -10/Subcaves Parts ------- > --- POWER (1) -------- Subdweller Power Source > --- PROPULSION (2) --- Subdweller Monowheel > --- UTILITY (2) ------ Huge Storage Unit > --- WEAPON (2) ------- Subdweller Laser Subdweller Laser > --- INVENTORY (25) --- Light Treads Light Treads Spiked Treads Subdweller Monowheel Subdweller Monowheel Disposable Heat Sink Subdweller Optics Utility Shielding Utility Shielding Scrap Shield Scrap Shield Subdweller Laser Shotgun Battle Rifle Subdweller Machine Gun Subdweller Machine Gun Light Cannon Light Cannon Mining Laser Scrap Shield Fragment (47) Peak State ------------ > --- POWER ------------ Improved Ion Engine > --- PROPULSION ------- Wheel Compact Wheel > --- UTILITY ---------- Huge Storage Unit Light Armor Plating > --- WEAPON ----------- Improved EM Shotgun Improved EM Shotgun > --- INVENTORY -------- Subdweller Power Source Light Treads Light Treads Light Treads Light Treads Improved Heat Sink Disposable Heat Sink Subdweller Optics Sensor Array Signal Interpreter Utility Shielding Utility Shielding Light Armor Plating Scrap Shield Scrap Shield Improved EM Shotgun Subdweller Laser Shotgun Shotgun Light Cannon Light Cannon Mining Laser Scrap Shield Fragment [Rating: 16] Favorites ----------- Power Improved Ion Engine Engine Improved Ion Engine Propulsion Subdweller Monowheel Treads Light Treads Leg Aluminum Leg Wheel Subdweller Monowheel Utility Huge Storage Unit Device Sensor Array Storage Huge Storage Unit Processor Signal Interpreter Protection Light Armor Plating Weapon Improved EM Shotgun Energy Gun Improved EM Shotgun Energy Cannon Subdweller Beam Cannon Ballistic Gun Assault Rifle Special Weapon Mining Laser Build | -11 -10 -10 ------- Run | Yrd Mat Sub Slots Evolved . | . . . Power . | . . . Propulsion . | . . . Utility . | . . . Weapon . | . . . Parts Attached 34 | . 18 16 Power 3 | . 2 1 Engine 3 | . 2 1 Core . | . . . Reactor . | . . . Propulsion 11 | . 5 6 Treads 3 | . 1 2 Leg 1 | . 1 . Wheel 7 | . 3 4 Hover . | . . . Flight . | . . . Utility 9 | . 5 4 Device 1 | . . 1 Storage 2 | . 2 . Processor 1 | . . 1 Hackware . | . . . Protection 5 | . 3 2 Artifact . | . . . Weapon 11 | . 6 5 Energy Gun 8 | . 5 3 Energy Cannon 1 | . . 1 Ballistic Gun 1 | . . 1 Ballistic Cannon . | . . . Launcher . | . . . Special Weapon 1 | . 1 . Impact Weapon . | . . . Slashing Weapon . | . . . Piercing Weapon . | . . . Special Melee Weapon . | . . . Unidentified Prototypes 1 | . 1 . Corrupted Parts 1 | . 1 . System Corruption 8 | . 8 . Parts Lost 13 | . 2 11 Power 2 | . 1 1 Propulsion 3 | . . 3 Utility 3 | . . 3 Weapon 5 | . 1 4 Highest Loss Streak 4 | . 1 4 To Critical Strikes 1 | . . 1 Average Backups 16 | . 11 20 Power . | . . . Propulsion 4 | . 3 4 Utility 5 | . 3 7 Weapon 5 | . 4 6 Tool/Special . | . . . Unused Backups 25 | . 5 20 Power 2 | . 1 1 Propulsion 7 | . 1 6 Utility 7 | . 2 5 Weapon 9 | . 1 8 Tool/Special . | . . . Average Slot Usage (%) 98 | . 95 99 Engine 14 | . 14 14 Treads 2 | . 5 . Leg 1 | . 2 . Wheel 24 | . 20 27 Device 1 | . . 3 Storage 14 | . 14 14 Protection 9 | . 10 9 Energy Gun 19 | . 23 17 Energy Cannon 4 | . . 8 Ballistic Gun 2 | . 4 1 Special Weapon 1 | . . 1 Peak Build Rating 16 | . 14 16 Average Rating 13 | . 11 14 On Entrance 8 | 6 6 14 Naked Turns . | . . . Heaviest Build 102 | 14 96 102 Greatest Support 40 | 20 26 40 Greatest Overweight (x) 5 | . 3 5 Average Overweight (x) 2 | . 2 2 Largest Inventory Capacity 25 | . 25 25 Average Capacity 21 | . 17 25 Most Carried 25 | . 19 25 Average Carried 18 | . 11 22 Final Capacity 25 | 8 25 25 Final Carried 22 | 6 19 22 Class Distribution -------------------- 62% | Mutant 37% | Scavenger-Mutant Dominant Class ---------------- Mutant | -10/Materials Scavenger-Mutant | -10/Subcaves Resources | -11 -10 -10 ----------- Run | Yrd Mat Sub Matter Collected 811 | 200 332 279 Remotely . | . . . Salvage Created 1189 | . 633 556 Parts 66 | . 31 35 Haulers Intercepted 2 | . 2 . Recyclers Shooed 2 | . 2 . Parts Field Recycled . | . . . Retrieved Matter . | . . . Parts Self-Destructed 9 | . . 9 Prevented . | . . . Kills | -11 -10 -10 ------- Run | Yrd Mat Sub Combat Hostiles Destroyed 27 | . 15 12 Guns 17 | . 13 4 Cannons 5 | . . 5 AOE 4 | . 1 3 Classes Destroyed 6 | . 4 2 Builder 1 | . 1 . Hauler 2 | . 2 . Swarmer 7 | . 6 1 Grunt 9 | . 9 . Subdweller 11 | . . 11 Scientist 1 | . . 1 Best Kill Streak 5 | . 5 2 Combat Bots Only 5 | . 5 2 Max Kills in Single Turn 2 | . 2 2 Gunslinging 1 | . 1 . Exploded 2 | . 1 2 Melee . | . . . Uniques/NPCs Destroyed . | . . . Combat | -11 -10 -10 -------- Run | Yrd Mat Sub Hostile Shots Fired 108 | . 48 60 Missed 27 | . 12 15 Hits 81 | . 36 45 Projectile 81 | . 36 45 Critical Strikes 1 | . . 1 Part Disruptions 2 | . 2 . Damage Taken 1700 | . 627 1073 Core 260 | . 111 149 Absorbed by Shields . | . . . Redirected to Shielding 3 | . 3 . Core Remaining (%) 100 | 100 . . Volleys Fired 88 | . 37 51 Largest 2 | . 2 2 Hottest 140 | . 100 140 Shots Fired 157 | . 72 85 Gun 125 | . 70 55 Cannon 23 | . . 23 Launcher . | . . . Special 9 | . 2 7 Kinetic 32 | . 23 9 Thermal 84 | . 24 60 Explosive . | . . . Electromagnetic 41 | . 25 16 Robot Hit Streak 15 | . 15 8 Robot Miss Streak 5 | . 4 5 Penetration Max . | . . . Secondary Targets 3 | . 2 1 Max Gunslinging Chain 1 | . 1 1 Shots Hit Robots 100 | . 48 52 Core Hits 53 | . 27 26 Critical Kills . | . . . Critical Parts Destroyed . | . . . Critical Strikes . | . . . Melee Attacks . | . . . Impact . | . . . Slashing . | . . . Piercing . | . . . Sneak Attacks . | . . . Combat Hostiles . | . . . Follow-up Attacks . | . . . Damage Inflicted 2394 | . 944 1450 Guns 1399 | . 686 713 Cannons 443 | . . 443 Explosions 552 | . 258 294 Melee . | . . . Ramming . | . . . Kinetic 315 | . 172 143 Thermal 1504 | . 402 1102 Explosive . | . . . Electromagnetic 575 | . 370 205 Impact . | . . . Slashing . | . . . Piercing . | . . . Highest Corruption 8 | . 8 8 Average Corruption 8 | . 8 8 Corruption Purged . | . . . Corruption Blocked . | . . . Effects 68 | . 21 47 Message Errors 14 | . 3 11 Matter Fused 16 | . 6 10 Heat Flow Errors 11 | . 4 7 Energy Discharges 5 | . 1 4 Parts Rejected 1 | . 1 . Parts Fused 1 | . . 1 Data Loss (minor) 13 | . 4 9 Data Loss (major) 1 | . . 1 Misfires 2 | . 1 1 Alerts 1 | . . 1 Weapon Failures 3 | . 1 2 Overload Shots . | . . . Overflow Damage . | . . . Projectiles . | . . . Explosions . | . . . Melee . | . . . Knockbacks . | . . . Impact . | . . . Kinetic . | . . . Secondary . | . . . Self-Inflicted Damage 224 | . 208 16 Shots 7 | . 6 1 Rammed . | . . . Targets Rammed . | . . . Kicked . | . . . Crushed . | . . . Highest Temperature 189 | . 189 185 Average Temperature 56 | . 56 56 Received Heat Transfer 240 | . 147 93 Siege Activations . | . . . Martial Activations . | . . . Shielding Activations . | . . . Robots Disrupted . | . . . Combat Hostiles . | . . . Robots Corrupted 1 | . 1 . Combat Hostiles 1 | . 1 . Parts Fried . | . . . Impact Corruptions . | . . . Robots Melted . | . . . Combat Hostiles . | . . . Parts Melted . | . . . Heat Transferred 2167 | . 775 1392 Parts Sabotaged . | . . . Parts Stolen . | . . . Parts Stripped . | . . . Power Chain Reactions 6 | . 4 2 Alert | -11 -10 -10 ------- Run | Yrd Mat Sub Maximum Alert Level 1 | . 1 . Low Security (%) 99 | . 99 . Level 1 . | . . . Level 2 . | . . . Level 3 . | . . . Level 4 . | . . . Level 5 . | . . . High Security . | . . . Max Security . | . . . Peak Influence 203 | . 203 . Initial . | . . . Average 113 | . 113 . Influence Increases 516 | . 496 20 Destroy 0b10 Robot/C 320 | . 300 20 Destroy 0b10 Robot/NC 15 | . 15 . Destroy Leader 64 | . 64 . Successful Hack 23 | . 23 . Disable Machine 60 | . 60 . Destroy Structure 19 | . 19 . Lose Combat Pursuer 15 | . 15 . Influence Decreases 516 | . 408 108 Entered New Map 43 | . . 43 Time Decay 453 | . 388 65 Lost Part 20 | . 20 . Squads Dispatched 2 | . 2 . Investigation 1 | . 1 . Extermination . | . . . Reinforcement 1 | . 1 . Assault . | . . . Garrison . | . . . Intercept . | . . . Searches Triggered . | . . . Construction Impeded . | . . . Haulers Reinforced . | . . . Active Scanning Responses . | . . . Cargo Convoy Interrupts . | . . . Stealth | -11 -10 -10 --------- Run | Yrd Mat Sub Distress Signals 2 | . 2 . Communications Jammed . | . . . Distress Signals . | . . . Times Spotted 51 | . 25 26 Peak Tracking Total 10 | . 4 10 Tactical Retreats 1 | . 1 . Traps | -11 -10 -10 ------- Run | Yrd Mat Sub Traps Triggered 4 | . 2 2 Indirectly . | . . . Trap Hack Attempts . | . . . Triggered . | . . . Disarmed . | . . . Reprogrammed . | . . . Reused . | . . . Traps Extracted . | . . . Installed . | . . . Triggered . | . . . Machines | -11 -10 -10 ---------- Run | Yrd Mat Sub Machines Disabled 4 | . 4 . Max in Single Turn 3 | . 3 . Machines Repaired . | . . . Machines Dismantled . | . . . Machines Sabotaged . | . . . Overloaded Fab Kills . | . . . Hacking | -11 -10 -10 --------- Run | Yrd Mat Sub Machines Accessed 7 | . 6 1 Terminals 4 | . 4 . Fabricators . | . . . Repair Stations . | . . . Recycling Units 2 | . 2 . Scanalyzers . | . . . Garrison Access . | . . . Total Hacks 27 | . 22 5 Successful 12 | . 7 5 Failed 15 | . 15 . Catastrophic 3 | . 3 . Database Lockouts . | . . . Manual 4 | . 4 . Terminals 16 | . 16 . Fabricators . | . . . Repair Stations . | . . . Recycling Units 6 | . 6 . Scanalyzers . | . . . Garrison Access . | . . . Terminal Hacks 8 | . 3 5 Record 5 | . . 5 Prototype ID Bank 1 | . 1 . Branch Access Points 1 | . 1 . Terminal Index 1 | . 1 . Fabricator Hacks . | . . . Repair Station Hacks . | . . . Recycling Unit Hacks 1 | . 1 . Retrieve Components 1 | . 1 . Scanalyzer . | . . . Garrison Access Hacks . | . . . Unauthorized Hacks 2 | . 2 . Terminals . | . . . Fabricators . | . . . Repair Stations . | . . . Recycling Units 2 | . 2 . Reject 1 | . 1 . Mask 1 | . 1 . Scanalyzers . | . . . Garrison Access . | . . . Data Cores Recovered . | . . . Used . | . . . Hacking Detections 6 | . 6 . Full Trace Events 1 | . 1 . Feedback Events . | . . . Feedback Blocked . | . . . Robot Schematics Acquired . | . . . Robots Built . | . . . Authchips . | . . . Time . | . . . Total Robot Build Rating . | . . . Part Schematics Acquired . | . . . Parts Built . | . . . Authchips . | . . . Time . | . . . Total Part Build Rating . | . . . Parts Repaired . | . . . Time . | . . . Parts Recycled . | . . . Recycled Matter . | . . . Retrieved Matter . | . . . Retrieved Components 8 | . 8 . Parts Scanalyzed . | . . . Part Schematics Acquired . | . . . Parts Damaged . | . . . Bothacking | -11 -10 -10 ------------ Run | Yrd Mat Sub Used RIF Installer . | . . . Robots Hacked . | . . . Non-combat . | . . . Combat . | . . . Robot Hacks Applied . | . . . Relay Couplers Released . | . . . Fabnet Peak Effective % . | . . . Robots Rewired . | . . . Allies Hacked . | . . . Hacks Repelled . | . . . Allies | -11 -10 -10 -------- Run | Yrd Mat Sub Total Allies . | . . . Largest Group . | . . . Highest-Rated Group . | . . . Highest-Rated Ally . | . . . Total Orders . | . . . Ally Attacks . | . . . Total Damage . | . . . Kills . | . . . Allies Corrupted . | . . . Allies Melted . | . . . Intel | -11 -10 -10 ------- Run | Yrd Mat Sub Active Infowar (turns) 319 | . . 319 Sensors 319 | . . 319 Robot Analysis Total . | . . . Derelict Logs Recovered 1 | . . 1 Drone Launches . | . . . Drone Recoveries . | . . . Exploration | -11 -10 -10 ------------- Run | Yrd Mat Sub Turns Passed 2278 | . 944 1334 Spaces Moved 1376 | 1 572 803 Core . | . . . Treads 2 | . . 2 Legs 54 | 1 53 . Wheels 1320 | . 519 801 Hover . | . . . Flight . | . . . Fastest Speed 95 | 120 95 130 Average Speed 130 | 120 120 138 Slowest Speed 320 | 120 135 320 Overloaded Moves . | . . . Propulsion Burnouts . | . . . Robots Hopped . | . . . Potential Cave-ins . | . . . Cave-ins Triggered . | . . . Exploration Rate (%) 48 | 2 89 55 Regions Visited 2 Branch Regions 1 Pre-discovered Areas 1 | . . 1 Known Exits Taken . | . . . Unknown Exits Taken 2 | 1 1 . Scrap Searched . | . . . Spaces Dug . | . . . Terrain Destroyed 22 | . 14 8 Melee . | . . . Projectile . | . . . AOE 22 | . 14 8 Terrain Rammed . | . . . Walls Destroyed . | . . . Machines Disabled . | . . . Actions | -11 -10 -10 --------- Run | Yrd Mat Sub Total 1678 | . 749 929 Wait 102 | . 81 21 Move 1374 | . 571 803 Hop . | . . . Pick Up 45 | . 23 22 Fast Attach 8 | . 7 1 Attach 18 | . 7 11 Detach 1 | . 1 . Swap 16 | . 9 7 Drop 26 | . 13 13 Fire 88 | . 37 51 Melee . | . . . Ram . | . . . Kick . | . . . Crush . | . . . Escape Stasis . | . . . Rewire . | . . . Trap . | . . . Miscellaneous . | . . . Route ------- -11/Scrapyard -10/Materials (discovered 5 exits: [*Mat x2] / *Min x2 / *Sub) -10/Subcaves (discovered 2 exits: *Mat / [*Rec]) History --------- Turn | Location | Event 1 | -11/Scrapyard | Discovered new exit (range 0) 1 | -11/Scrapyard | Entered Materials 1 | -10/Materials | Discovered new exit (range 8) 168 | -10/Materials | Discovered new exit (range 7) 342 | -10/Materials | Build established: Mutant 581 | -10/Materials | Identified exit to Mines 706 | -10/Materials | Discovered new exit (range 10) 854 | -10/Materials | Discovered new exit (range 15) 922 | -10/Materials | Discovered new exit (range 7) 945 | -10/Materials | Entered Subcaves 946 | -10/Subcaves | Approached by a straggling Scientist 996 | -10/Subcaves | Discovered new exit (range 8) 1031 | -10/Subcaves | Identified exit to Materials 1137 | -10/Subcaves | Ambushed by swarm of Subdwellers 1139 | -10/Subcaves | Ambushed by Subdwellers from Twisted Machinery 1139 | -10/Subcaves | Ambushed by Subdwellers from Twisted Machinery 1187 | -10/Subcaves | Core integrity fell below 50% 1210 | -10/Subcaves | Lost 4 parts (2n2w) 1213 | -10/Subcaves | Lost 4 allies 1271 | -10/Subcaves | Shifting Twisted Machinery released Spk. Treads 1317 | -10/Subcaves | Discovered new exit (range 12) 1574 | -10/Subcaves | Build established: Scavenger-Mutant 1673 | -10/Subcaves | Visited Clippyterm 1678 | -10/Subcaves | Learned location of Deep Caves (-6) 1678 | -10/Subcaves | Learned Factory garrison access intel 2159 | -10/Subcaves | Shifting Twisted Machinery released Scrap Shield 2160 | -10/Subcaves | Shifting Twisted Machinery released Sub. Laser 2210 | -10/Subcaves | Core integrity fell below 20% 2279 | -10/Subcaves | Destroyed by YX-ZDS(R) with Subdweller Machine Gun Last Messages --------------- Machinery. Sub. Laser falls loose from the Twisted Machinery. 02169_ System corrupted: Matter fused (-6). 02175_ 6X-L7G(u) deconstructs Twisted Machinery. 02177_ Acquired Sub. Laser. 02181_ 6X-L7G(u) deconstructs Twisted Machinery. 02188_ Sub. Power Source shoots sparks and powers down. 02188_ System corrupted: Heat flow error (+220). 02188_ 6X-L7G(u) deconstructs Twisted Machinery. 02203_ System corrupted: Component data lost. 02211_ Sub. Beam Cannon destroyed. 02220_ System corrupted: Sub. Monowheel fused. 02222_ A4-ED9(R) destroyed. 02236_ <2FRB W0C=6L, 02256_ System corrupted: Matter fused (-6). 02277_ Sensor Array destroyed. 02279_ Sub. Monowheel destroyed. Map ----- +----------------------------------------------------+ | ?????????????????????????????????????????????????? | | ????????????????????????? ##???##????????????????? | | ???????????????????????""" "??"""????????????????? | | ???????????????????????""" ??? ?????????????????? | | ??????????????????###??"" #???" ?????????????????? | | ?????????????????##!#??"" ##??"#?????????????????? | | ?????????????????# "####"""#?? ##????????????????? | | #??????##???????## "%##""""### "##???????????????? | | #?###?# ##??????# "!"*]" ""## "#???????????????? | | #?# ## #??#####"!""## #" ##??????????????? | | #?# #?## ## ""####" " ""#??????????????? | | ### #?## " "" #??#" " #??????????????? | | #?### " """"##??# " "##??????????????? | | ### ###" #???#""""" #???????????????? | | ## ###?#"###??## """ "#??????????????? | | #?##### ###?##### ###??????????????? | | #### ## ##????# #????????????????? | | #?# ## #????# " #???#????????????? | | ##?# R ##???# ### #????????????? | | ### ##?## ### ##??? ??????????????? | | ! ######??# #?# #??## #???????????????? | | ####### ### ### ##??????##???????? | | ## ### # # #????## #???????? | | % ###?## R ##?? ?????????? | | ####### R ## #??????????? | | ## #### @ ## # ###?????????? | | ##### ### ### # # #?????????? | | ## ###???### ## " "#?????????? | | ?## ##???????# #??????? | | ??###????????# ### # #" " #?????? | | ?????????????####?## ## ##??? " ????????? | | ???????????????????##### #? ##????????????????? | | ???????????????????????## #?# #?????????????????? | | ????????????????????????####??##?????????????????? | | ?????????????????????????????????????????????????? | | ?????????????????????????????????????????????????? | | ?????????????????????????????????????????????????? | | ?????????????????????????????????????????????????? | | ?????????????????????????????????????????????????? | | ?????????????????????????????????????????????????? | | ?????????????????????????????????????????????????? | | ?????????????????????????????????????????????????? | | ?????????????????????????????????????????????????? | | ?????????????????????????????????????????????????? | | ?????????????????????????????????????????????????? | | ?????????????????????????????????????????????????? | | ?????????????????????????????????????????????????? | | ?????????????????????????????????????????????????? | | | | | +----------------------------------------------------+ Best States ------------- Heat Dissipation 25 Energy Generation 15 Energy Capacity 265 Matter Stores 300 Matter Capacity 300 Sight Range 16 Robot Scan Range 14 Terrain Scan Density 10 Armor Coverage 150 Propulsion Shielding 33 Evasion (%) 55 Recoil Reduction 2 Item Schematics ----------------- None Robot Schematics ------------------ None Fabricated ------------ Nothing Repaired ---------- Nothing Alien Tech Used ----------------- None Achievements -------------- None Challenges ------------ None Game ------ Seed RecyclingSurgeMicrothruster Manual? 0 Play Time 00:27:23 Cumulative 331.7 hours Start 2025.06.02 @ 11:07:20 End 2025.06.02 @ 11:33:45 Sessions 1 Manual Loads 0 Difficulty Rogue Special Mode None Game No. 95 Rogue 78 Adventurer 17 Explorer 0 Win Type - Total 18 Types 8/1/7/1/0/0/1/0/0/0 Lore% 60 Gallery% 71 Achievement% 73 Wizard Run 0 Options --------- Layout 1 ASCII 0 Keyboard 0 Movement Arrows Keybinds 0 Fullscreen 1 Font 24/Terminus Map View 50x35 Zoom Use 0% Tactical HUD 1 Map Filters NONE Filters NONE Steam 1 RUN: 6d58c416-2db9-41d1-b71a-af1422264935